Cogmind - Beta 16.1 @@@ ROGUE MODE // 2026.02.15 @ 21:58:58 Player: Gingerlink Result: Self-destructed Performance ------------- Evolutions (1) 500 Regions Visited (2) 400 Robots Destroyed (10) 50 Value Destroyed (135) 135 Prototype IDs (2) 40 Alien Tech Used (0) 0 Bonus (0) 0 TOTAL SCORE: 1125 Bonus ------- None Cogmind --------- Core Integrity 152/400 Matter 123/300 Energy 99/100 System Corruption 0% Temperature Cool (0) Movement Flying (37) Location -9/Materials Parts ------- > --- POWER (1) -------- (None) > --- PROPULSION (4) --- Flight Unit Flight Unit > --- UTILITY (2) ------ Small Storage Unit Sensor Array > --- WEAPON (2) ------- Datajack > --- INVENTORY (8) ---- Light Deuterium Engine Small Storage Unit Medium Storage Unit Sensor Array Small Laser Light Assault Rifle Light Assault Rifle Peak State ------------ > --- POWER ------------ Light Deuterium Engine > --- PROPULSION ------- Flight Unit Flight Unit Flight Unit Flight Unit > --- UTILITY ---------- Small Storage Unit Sensor Array > --- WEAPON ----------- Heavy Assault Rifle Datajack > --- INVENTORY -------- Light Deuterium Engine Small Storage Unit Medium Storage Unit Sensor Array Small Laser Light Assault Rifle Light Assault Rifle [Rating: 12] Favorites ----------- Power Ion Engine Engine Ion Engine Propulsion Flight Unit Leg Aluminum Leg Flight Unit Flight Unit Utility Small Storage Unit Device Sensor Array Storage Small Storage Unit Weapon Datajack Energy Gun Small Laser Ballistic Gun Light Assault Rifle Special Melee Weapon Datajack Build | -11 -10 -9 ------- Run | Yrd Mat Mat Slots Evolved 2 | . . 2 Power . | . . . Propulsion 2 | . . 2 Utility . | . . . Weapon . | . . . Parts Attached 17 | 7 5 5 Power 3 | 2 . 1 Engine 3 | 2 . 1 Core . | . . . Reactor . | . . . Propulsion 6 | 2 2 2 Treads . | . . . Leg 2 | 2 . . Wheel . | . . . Hover . | . . . Flight 4 | . 2 2 Utility 3 | 1 1 1 Device 1 | . 1 . Storage 2 | 1 . 1 Processor . | . . . Hackware . | . . . Protection . | . . . Artifact . | . . . Weapon 5 | 2 2 1 Energy Gun 1 | 1 . . Energy Cannon . | . . . Ballistic Gun 3 | 1 1 1 Ballistic Cannon . | . . . Launcher . | . . . Special Weapon . | . . . Impact Weapon . | . . . Slashing Weapon . | . . . Piercing Weapon . | . . . Special Melee Weapon 1 | . 1 . Unidentified Prototypes . | . . . Parts Lost 4 | . . 4 Power 1 | . . 1 Propulsion 2 | . . 2 Utility . | . . . Weapon 1 | . . 1 Highest Loss Streak 4 | . . 4 To Critical Strikes . | . . . Average Backups 4 | 1 4 4 Power . | . 1 1 Propulsion . | . 1 . Utility . | . . . Weapon 1 | . 1 2 Tool/Special . | . . . Unused Backups 9 | . 2 7 Power 2 | . . 2 Propulsion 2 | . 2 . Utility 3 | . . 3 Weapon 2 | . . 2 Tool/Special . | . . . Average Slot Usage (%) 88 | . 86 90 Engine 12 | . 14 10 Leg 11 | . 22 . Flight 23 | . 4 42 Device 7 | . 4 11 Storage 7 | . 11 3 Energy Gun 5 | . 11 . Ballistic Gun 12 | . 13 11 Special Melee Weapon 6 | . 2 11 Peak Build Rating 12 | 6 7 12 Average Rating 7 | 4 6 10 On Entrance 4 | . 6 6 Avg Prop Armor Cover (%) . | . . . Naked Turns . | . . . Heaviest Build 15 | 13 14 15 Greatest Support 20 | 20 20 16 Greatest Overweight (x) 3 | . 3 . Average Overweight (x) . | . . . Largest Inventory Capacity 8 | 8 8 8 Average Capacity 6 | 7 7 6 Most Carried 8 | 4 8 7 Average Carried 4 | 1 4 4 Final Capacity 8 | 8 5 8 Final Carried 7 | 4 4 7 Class Distribution -------------------- 56% | Mutant 41% | Scavenger-Sprinter Dominant Class ---------------- Mutant | -10/Materials Scavenger-Sprinter | -9/Materials Resources | -11 -10 -9 ----------- Run | Yrd Mat Mat Matter Collected 312 | 193 119 . Remotely . | . . . Salvage Created 193 | . 136 57 Parts 26 | . 21 5 Haulers Intercepted . | . . . Recyclers Shooed . | . . . Parts Field Recycled . | . . . Retrieved Matter . | . . . Parts Self-Destructed . | . . . Prevented . | . . . Parts Restored . | . . . Kills | -11 -10 -9 ------- Run | Yrd Mat Mat Combat Hostiles Destroyed 10 | . 9 1 Guns 10 | . 9 1 Classes Destroyed 2 | . 1 1 Swarmer 9 | . 9 . Sentry 1 | . . 1 Best Kill Streak 4 | . 4 1 Combat Bots Only 4 | . 4 1 Max Kills in Single Turn 2 | . 2 1 Gunslinging 1 | . 1 . Exploded . | . . . Melee . | . . . Uniques/NPCs Destroyed . | . . . Combat | -11 -10 -9 -------- Run | Yrd Mat Mat Hostile Shots Fired 127 | . 56 71 Missed 38 | . 17 21 Hits 89 | . 39 50 Projectile 89 | . 39 50 Critical Strikes 1 | . . 1 Damage Taken 971 | . 325 646 Core 321 | . 73 248 Absorbed by Shields . | . . . Core Remaining (%) 85 | 100 70 . Volleys Fired 47 | . 21 26 Largest 2 | . 2 1 Hottest 60 | . 60 23 Shots Fired 68 | . 42 26 Gun 68 | . 42 26 Cannon . | . . . Launcher . | . . . Special . | . . . Kinetic 47 | . 21 26 Thermal 21 | . 21 . Explosive . | . . . Electromagnetic . | . . . Robot Hit Streak 18 | . 2 18 Robot Miss Streak 4 | . 4 4 Penetration Max . | . . . Secondary Targets 1 | . 1 . Max Gunslinging Chain 1 | . 1 . Shots Hit Robots 43 | . 15 28 Core Hits 14 | . 9 5 Critical Kills . | . . . Critical Parts Destroyed 1 | . . 1 Critical Strikes 1 | . . 1 Destroy 1 | . . 1 Melee Attacks 8 | . . 8 Impact . | . . . Slashing . | . . . Piercing . | . . . Sneak Attacks . | . . . Combat Hostiles . | . . . Follow-up Attacks . | . . . Damage Inflicted 468 | . 175 293 Guns 468 | . 175 293 Cannons . | . . . Explosions . | . . . Melee . | . . . Ramming . | . . . Kinetic 379 | . 86 293 Thermal 89 | . 89 . Explosive . | . . . Electromagnetic . | . . . Impact . | . . . Slashing . | . . . Piercing . | . . . Highest Corruption . | . . . Average Corruption . | . . . Corruption Purged . | . . . Corruption Blocked . | . . . Overload Shots . | . . . Overflow Damage . | . . . Projectiles . | . . . Explosions . | . . . Melee . | . . . Knockbacks . | . . . Impact . | . . . Kinetic . | . . . Secondary . | . . . Self-Inflicted Damage . | . . . Shots . | . . . Rammed . | . . . Targets Rammed . | . . . Kicked . | . . . Crushed . | . . . Highest Temperature 28 | . . 28 Average Temperature 6 | . . 6 Received Heat Transfer 363 | . . 363 Siege Activations . | . . . Martial Activations . | . . . Shielding Activations . | . . . Robots Disrupted . | . . . Combat Hostiles . | . . . Robots Corrupted . | . . . Combat Hostiles . | . . . Parts Fried . | . . . Impact Corruptions . | . . . Robots Melted . | . . . Combat Hostiles . | . . . Parts Melted . | . . . Heat Transferred 200 | . 200 . Parts Sabotaged . | . . . Parts Stolen . | . . . Parts Stripped . | . . . Power Chain Reactions . | . . . Alert | -11 -10 -9 ------- Run | Yrd Mat Mat Maximum Alert Level . | . . . Low Security (%) 100 | 100 100 100 Level 1 . | . . . Level 2 . | . . . Level 3 . | . . . Level 4 . | . . . Level 5 . | . . . High Security . | . . . Max Security . | . . . Peak Influence 196 | . 196 99 Initial 54 | . . 54 Average 75 | . 132 33 Influence Increases 520 | . 316 204 Destroy 0b10 Robot/C 200 | . 180 20 Destroy Leader 40 | . 30 10 Successful Hack 9 | . . 9 Destroy Structure 1 | . 1 . Partial Spotted 15 | . . 15 Lose Combat Pursuer 255 | . 105 150 Influence Decreases 497 | . 186 311 Entered New Map 76 | . . 76 Time Decay 381 | . 186 195 Lost Part 40 | . . 40 Squads Dispatched 1 | . . 1 Investigation 1 | . . 1 Extermination . | . . . Reinforcement . | . . . Assault . | . . . Garrison . | . . . Intercept . | . . . Searches Triggered . | . . . Construction Impeded . | . . . Haulers Reinforced . | . . . Active Scanning Responses . | . . . Cargo Convoy Interrupts . | . . . Stealth | -11 -10 -9 --------- Run | Yrd Mat Mat Distress Signals 1 | . . 1 Communications Jammed . | . . . Distress Signals . | . . . Times Spotted 29 | . 18 11 Peak Tracking Total 6 | . 6 4 Tactical Retreats 7 | . 2 5 Traps | -11 -10 -9 ------- Run | Yrd Mat Mat Traps Triggered 1 | . . 1 Indirectly . | . . . Trap Hack Attempts . | . . . Triggered . | . . . Disarmed . | . . . Reprogrammed . | . . . Reused . | . . . Traps Extracted . | . . . Installed . | . . . Triggered . | . . . Machines | -11 -10 -9 ---------- Run | Yrd Mat Mat Machines Disabled . | . . . Max in Single Turn . | . . . Machines Repaired . | . . . Machines Dismantled . | . . . Machines Sabotaged . | . . . Overloaded Fab Kills . | . . . Hacking | -11 -10 -9 --------- Run | Yrd Mat Mat Machines Accessed 4 | . . 4 Terminals 3 | . . 3 Fabricators . | . . . Repair Stations . | . . . Recycling Units 1 | . . 1 Scanalyzers . | . . . Garrison Access . | . . . Total Hacks 6 | . . 6 Successful 4 | . . 4 Failed 2 | . . 2 Catastrophic . | . . . Database Lockouts . | . . . Manual . | . . . Terminals 5 | . . 5 Fabricators . | . . . Repair Stations . | . . . Recycling Units 1 | . . 1 Scanalyzers . | . . . Garrison Access . | . . . Terminal Hacks 3 | . . 3 Record 1 | . . 1 Prototype ID Bank 1 | . . 1 Locate Traps 1 | . . 1 Fabricator Hacks . | . . . Repair Station Hacks . | . . . Recycling Unit Hacks 1 | . . 1 Report Inventory 1 | . . 1 Scanalyzer . | . . . Garrison Access Hacks . | . . . Unauthorized Hacks . | . . . Terminals . | . . . Fabricators . | . . . Repair Stations . | . . . Recycling Units . | . . . Scanalyzers . | . . . Garrison Access . | . . . Data Cores Recovered . | . . . Used . | . . . Hacking Detections 2 | . . 2 Full Trace Events . | . . . Feedback Events . | . . . Feedback Blocked . | . . . Robot Schematics Acquired . | . . . Robots Built . | . . . Authchips . | . . . Time . | . . . Total Robot Build Rating . | . . . Part Schematics Acquired . | . . . Parts Built . | . . . Authchips . | . . . Time . | . . . Total Part Build Rating . | . . . Part Studies Acquired . | . . . Parts Repaired . | . . . Time . | . . . Parts Recycled . | . . . Recycled Matter . | . . . Retrieved Matter . | . . . Retrieved Components . | . . . Parts Scanalyzed . | . . . Part Schematics Acquired . | . . . Parts Damaged . | . . . Bothacking | -11 -10 -9 ------------ Run | Yrd Mat Mat Used RIF Installer . | . . . Robots Hacked 1 | . . 1 Non-combat . | . . . Combat 1 | . . 1 Robot Hacks Applied 1 | . . 1 parse_system 1 | . . 1 Relay Couplers Released . | . . . Fabnet Peak Effective % . | . . . Robots Rewired . | . . . Allies Hacked . | . . . Hacks Repelled . | . . . Allies | -11 -10 -9 -------- Run | Yrd Mat Mat Total Allies . | . . . Largest Group . | . . . Highest-Rated Group . | . . . Highest-Rated Ally . | . . . Total Orders . | . . . Ally Attacks . | . . . Total Damage . | . . . Kills . | . . . Allies Corrupted . | . . . Allies Melted . | . . . Intel | -11 -10 -9 ------- Run | Yrd Mat Mat Active Infowar (turns) 556 | . 132 424 Sensors 556 | . 132 424 Robot Analysis Total . | . . . Derelict Logs Recovered . | . . . Drone Launches . | . . . Drone Recoveries . | . . . Exploration | -11 -10 -9 ------------- Run | Yrd Mat Mat Turns Passed 928 | 84 420 424 Spaces Moved 1212 | 63 320 829 Core 7 | 6 1 . Treads . | . . . Legs 239 | 57 182 . Wheels . | . . . Hover . | . . . Flight 966 | . 137 829 Fastest Speed 31 | 50 37 31 Average Speed 49 | 113 85 31 Slowest Speed 200 | 120 200 37 Overloaded Moves . | . . . Propulsion Burnouts . | . . . Robots Hopped . | . . . Potential Cave-ins . | . . . Cave-ins Triggered . | . . . Exploration Rate (%) 28 | 4 36 46 Regions Visited 2 Branch Regions . Pre-discovered Areas . | . . . Known Exits Taken . | . . . Unknown Exits Taken 2 | 1 1 . Scrap Searched . | . . . Spaces Dug . | . . . Terrain Destroyed . | . . . Melee . | . . . Projectile . | . . . AOE . | . . . Terrain Rammed . | . . . Walls Destroyed . | . . . Machines Disabled . | . . . Actions | -11 -10 -9 --------- Run | Yrd Mat Mat Total 1466 | 72 427 967 Wait 154 | . 66 88 Move 1210 | 62 319 829 Hop . | . . . Pick Up 14 | 3 5 6 Fast Attach 12 | 6 3 3 Attach 4 | . 2 2 Detach 4 | . 2 2 Swap 2 | 1 1 . Drop 11 | . 8 3 Fire 47 | . 21 26 Melee 8 | . . 8 Ram . | . . . Kick . | . . . Crush . | . . . Escape Stasis . | . . . Rewire . | . . . Trap . | . . . Miscellaneous . | . . . Route ------- -11/Scrapyard -10/Materials (discovered 2 exits: *Mat / [*Min]) -9/Materials (discovered 2 exits: [*Mat] / [*Min]) History --------- Turn | Location | Event 4 | -11/Scrapyard | Discovered new exit (range 15) 85 | -11/Scrapyard | Entered Materials 260 | -10/Materials | Discovered new exit (range 16) 314 | -10/Materials | Build established: Mutant 358 | -10/Materials | Discovered new exit (range 16) 505 | -10/Materials | Entered another Materials area 505 | -9/Materials | Evolved 2 slots: Propulsion x2 570 | -9/Materials | Discovered new exit (range 16) 595 | -9/Materials | Discovered new exit (range 15) 819 | -9/Materials | Build established: Scavenger-Sprinter 922 | -9/Materials | Core integrity fell below 50% 929 | -9/Materials | Self-destructed Last Messages --------------- G-47 Trooper suffers critical hit (Destroy). Destroyed Aluminum Leg. K-01 Serf collects debris. Flight Unit destroyed. Lgt. Deuterium Engine destroyed. K-01 Serf cleans the Matter Filter. Jacked G-47 Trooper... >>parse_system Reading system data... K-01 Serf collects debris. Jacked G-47 Trooper... Command string: shutdown No effect. Jacked G-47 Trooper... Command string: reboot No effect. Flight Unit destroyed. Hvy. Assault Rifle destroyed. Jacked G-47 Trooper... Jacked G-34 Mercenary... Map ----- +----------------------------------------------------+ | | | | | | | | | | | | | | | | | ???????????????????????????????###########???????? | | ???????????????????????????????# % #???????? | | ???????????????????????????????# """ #???##### | | ???????????????????????????????# [ "Y" #???# | | ???????????????????????####????# ##### / | | ??????????????????????## #????########+## # | | ??????????????????????# #????????# + "T | | ??????????????????????#! #????????# # "" | | ??????????????????????#! ########## # | | ??????????????????????#! ##### | | ??????????????????????## #???? | | ???????????????????????#### ?""""""" ##### | | ??????????????????????????# """"""" ## | | ??????????????????????????# """"""" ## | | ??????????????????????????## """"""" ## | | ???????????????????######### """"""" # | | ???????????????????# g#= + | | ???????????????????# @*g% # | | ???????????????????# !#g """"""" ###+#### | | ???????????????????# g# """"""" # ## | | ???????????????????######### """"""" # """ ##### | | ????????????????????####### """"""" # """ #???? | | ??????????????#= """"""" # """ #???? | | ??????????????# # #???? | | ??????????????# ?? [ # """ #???? | | ??????????????# #######? ###+#### """ #???? | | ??????????????## ????????### # # """ #???? | | ???????????????#????????????# # """ # #???? | | ????????????????????????????? # """ ##+######## | | ?????????????????????????????? # """ ## #??#= | | ????????????????????????????? # ## #??# " | | ????????????????????????????# # ## #??# " | | ????????????????????????????# ###+##### #??# | | ????????????????????????????# #??# """ | | ????????????????????????????# #??# """ | | ????????????????????????????# #### """ | | ????????????????????????????+ + | | ????????????????????????????# ########### ##### | | ????????????????????????????#???????????# | | ????????????????????????????????????????# ^ | | ????????????????????????????????????????#" ^ """ | | ????????????????????????????????????????#T """ | +----------------------------------------------------+ Best States ------------- Heat Dissipation 28 Energy Generation 14 Energy Capacity 250 Matter Stores 265 Matter Capacity 300 Sight Range 16 Robot Scan Range 14 Terrain Scan Density 10 Evasion (%) 63 Item Schematics ----------------- None Robot Schematics ------------------ None Fabricated ------------ Nothing Repaired ---------- Nothing Studied --------- None Alien Tech Used ----------------- None Achievements -------------- None Challenges ------------ None Game ------ Seed NetworkedCryofiberTether Manual? 0 Play Time 00:20:09 Cumulative 12.3 hours Start 2026.02.15 @ 21:40:59 End 2026.02.15 @ 21:58:58 Sessions 1 Manual Loads 0 Difficulty Rogue Special Mode None Game No. 23 Rogue 23 Adventurer 0 Explorer 0 Win Type - Total 0 Types 0/0/0/0/0/0/0/0/0/0 Lore% 1 Gallery% 13 Achievement% 8 Wizard Run 0 Options --------- Layout 0 ASCII 0 Keyboard 1 Movement Vi Keybinds 0 Fullscreen 2 Font 24/Smallcaps Map View 76x50 Zoom Use 0% Tactical HUD 0 Map Filters NONE Filters NONE Steam 1 RUN: 2e4e46fe-a885-426d-9092-c3ec6554587c